Cogmind - Beta 14 @@@ ROGUE MODE // 2024.09.17 @ 10:28:19 Player: TheRandomBlokkieZ Result: Destroyed by H-77 Assassin with High-powered Shotgun Performance ------------- Evolutions (6) 3000 Regions Visited (18) 3600 Robots Destroyed (44) 220 Value Destroyed (1790) 1790 Prototype IDs (6) 120 Alien Tech Used (0) 0 Bonus (849) 849 TOTAL SCORE: 9579 Bonus ------- Follower Combat Kills 49 Entered DSFs 500 Aligned with FarCom 300 Cogmind --------- Core Integrity 0/1150 Matter 300/300 Energy 90/100 System Corruption 1% Temperature Cool (0) Movement Core (50) Location -4/DSF Parts ------- > --- POWER (2) -------- (None) > --- PROPULSION (6) --- (None) > --- UTILITY (7) ------ Modified TNC > --- WEAPON (4) ------- (None) > --- INVENTORY (5) ---- (None) Peak State ------------ > --- POWER ------------ Neutrino Core Neutrino Core > --- PROPULSION ------- Wheel Wheel Compact Wheel Compact Wheel Improved Gravmag System > --- UTILITY ---------- Improved Heat Sink Modified TNC Melee Analysis Suite Experimental ECM Suite Hardened Heavy Armor Plating Hacking Suite > --- WEAPON ----------- Gauss Rifle Hypervelocity Mass Driver Fusion Bomb Launcher Katana > --- INVENTORY -------- (None) [Rating: 74] Favorites ----------- Power Neutrino Core Engine Improved Ion Engine Power Core Neutrino Core Reactor Antimatter Reactor Propulsion Wheel Leg Advanced VSS Leg Wheel Wheel Hover Unit Cooled Airjet Flight Unit Xenon Bombardment Thruster Utility Modified TNC Device Improved Heat Sink Storage Small Storage Unit Processor Modified TNC Hackware Hacking Suite Protection Hardened Heavy Armor Plating Weapon Heavy Assault Rifle Energy Gun EM Pulse Gun Energy Cannon Proton Cannon Ballistic Gun Heavy Assault Rifle Ballistic Cannon Advanced Assault Cannon Launcher Fusion Bomb Launcher Special Weapon Plasma Cutter Impact Weapon Power Maul Slashing Weapon Katana Build | -11 -10 -10 -9 -9 -9 -8 -8 -7 -7 -7 -6 -6 -6 -5 -5 -5 -4 -4 ------- Run | Yrd Mat Min Mat Min Exi Min Mat Fac Low Low Fac Low Low Fac Was Fac Fac DSF Slots Evolved 12 | . . . 2 . . . 2 2 . . 2 . . 2 . . 2 . Power 1 | . . . . . . . . 1 . . . . . . . . . . Propulsion 4 | . . . 1 . . . 2 . . . 1 . . . . . . . Utility 5 | . . . 1 . . . . . . . 1 . . 2 . . 1 . Weapon 2 | . . . . . . . . 1 . . . . . . . . 1 . Parts Attached 81 | 5 1 3 6 7 1 . 8 7 3 . 10 8 . 7 3 2 4 6 Power 8 | 1 . . 2 1 . . . . . . 1 1 . 1 . . . 1 Engine 5 | 1 . . 2 1 . . . . . . 1 . . . . . . . Core 2 | . . . . . . . . . . . . 1 . 1 . . . . Reactor 1 | . . . . . . . . . . . . . . . . . . 1 Propulsion 22 | 2 . . . 1 . . 5 2 . . 2 1 . 4 1 . 1 3 Treads . | . . . . . . . . . . . . . . . . . . . Leg 3 | . . . . . . . . . . . . . . . . . . 3 Wheel 8 | 2 . . . 1 . . . . . . . . . 4 1 . . . Hover 9 | . . . . . . . 5 2 . . 1 . . . . . 1 . Flight 2 | . . . . . . . . . . . 1 1 . . . . . . Utility 13 | . 1 1 2 . 1 . 1 1 . . 2 . . 2 1 . 1 . Device 5 | . . 1 1 . . . . . . . 1 . . . 1 . 1 . Storage 3 | . 1 . 1 . . . 1 . . . . . . . . . . . Processor 3 | . . . . . 1 . . 1 . . . . . 1 . . . . Hackware 1 | . . . . . . . . . . . 1 . . . . . . . Protection 1 | . . . . . . . . . . . . . . 1 . . . . Artifact . | . . . . . . . . . . . . . . . . . . . Weapon 38 | 2 . 2 2 5 . . 2 4 3 . 5 6 . . 1 2 2 2 Energy Gun 11 | 2 . . 1 2 . . 1 3 . . . . . . . . . 2 Energy Cannon 1 | . . . . . . . . . . . . . . . . 1 . . Ballistic Gun 8 | . . 2 1 1 . . . . . . . 3 . . . 1 . . Ballistic Cannon 7 | . . . . . . . . 1 2 . 2 . . . 1 . 1 . Launcher 1 | . . . . . . . . . . . . . . . . . 1 . Special Weapon 8 | . . . . 2 . . 1 . 1 . 2 2 . . . . . . Impact Weapon 1 | . . . . . . . . . . . 1 . . . . . . . Slashing Weapon 1 | . . . . . . . . . . . . 1 . . . . . . Piercing Weapon . | . . . . . . . . . . . . . . . . . . . Special Melee Weapon . | . . . . . . . . . . . . . . . . . . . Unidentified Prototypes 6 | . . . 2 . 1 . . 2 . . . . . . 1 . . . Parts Lost 52 | . . 1 . 7 . . 1 . 2 4 1 11 . 3 . . . 22 Power 6 | . . . . 1 . . . . . 1 . 1 . . . . . 3 Propulsion 20 | . . . . 2 . . 1 . 1 3 1 3 . 1 . . . 8 Utility 7 | . . . . . . . . . . . . 1 . 1 . . . 5 Weapon 19 | . . 1 . 4 . . . . 1 . . 6 . 1 . . . 6 Highest Loss Streak 22 | . . 1 . 6 . . 1 . 2 4 1 11 . 3 . . . 22 To Critical Strikes . | . . . . . . . . . . . . . . . . . . . Average Slot Usage (%) 66 | . 82 99 81 60 66 66 95 88 90 57 59 54 46 59 73 79 89 42 Engine 5 | . 14 14 10 7 11 11 9 7 7 2 5 2 . . . . . . Core 2 | . . . . . . . . . . . . 2 6 6 11 11 10 3 Wheel 7 | . 28 28 22 8 11 11 . . . . . . . 8 20 23 21 2 Hover 5 | . . . . . . . 41 35 36 9 6 2 . . . . 5 2 Device 6 | . . 13 16 22 19 11 9 3 . . 2 . . . . 5 10 4 Storage 6 | . 11 14 11 11 11 11 8 7 7 7 6 3 . . . . . . Processor 9 | . . . . . 2 11 9 10 15 15 13 13 13 15 11 11 10 7 Hackware 2 | . . . . . . . . . . . 2 6 6 5 5 5 5 5 Energy Gun 2 | . 28 23 . 3 . . 3 7 5 . . . . . . . . 2 Ballistic Gun 8 | . . 4 21 7 11 11 9 7 7 7 6 9 13 9 5 5 5 2 Ballistic Cannon 2 | . . . . . . . . 6 7 15 8 2 . . 4 3 5 . Impact Weapon 1 | . . . . . . . . . . . 3 2 . . . . . . Slashing Weapon 1 | . . . . . . . . . . . . 1 6 5 5 5 5 2 Peak Build Rating 74 | 5 6 9 14 13 16 16 29 39 39 38 38 43 27 40 57 60 74 74 Average Rating 26 | 3 5 8 10 11 13 16 27 33 38 29 33 31 27 38 47 55 72 38 On Entrance 27 | . 5 6 9 12 13 16 16 26 39 38 28 38 27 27 40 57 53 74 Naked Turns . | . . . . . . . . . . . . . . . . . . . Heaviest Build 81 | 7 17 18 20 23 23 22 23 26 27 27 29 26 20 52 66 66 81 81 Greatest Support 54 | 20 20 20 20 20 12 12 38 39 39 31 24 8 3 36 52 52 52 54 Greatest Overweight (x) 18 | . . . . 4 1 1 1 . . 2 3 6 6 13 1 1 1 18 Average Overweight (x) 1 | . . . . 1 1 1 . . . 1 2 3 6 2 1 1 1 1 Largest Inventory Capacity 10 | 5 10 10 10 10 10 10 10 8 8 8 8 8 5 5 5 5 5 5 Average Capacity 7 | 5 9 10 10 10 10 10 8 8 8 8 8 6 5 5 5 5 5 5 Most Carried 10 | 2 2 5 10 10 10 10 10 8 8 8 8 8 5 3 4 4 3 3 Average Carried 6 | . . 3 9 8 9 10 4 7 7 8 7 5 5 2 2 3 . . Final Capacity 10 | 5 10 10 10 10 10 10 8 8 8 8 8 5 5 5 5 5 5 5 Final Carried 10 | . 2 5 10 9 10 10 6 8 8 8 7 5 5 2 3 4 . . Class Distribution -------------------- 72% | Mutant 10% | Scavenger-Mutant 6% | Skirmisher 6% | Gunner 4% | Derelict-Mutant Dominant Class ---------------- Mutant | -10/Materials Mutant | -10/Mines Mutant | -9/Materials Mutant | -9/Mines Mutant | -9/Exiles Mutant | -8/Mines Mutant | -8/Materials Skirmisher | -7/Factory Gunner | -7/Lower Caves Gunner | -7/Lower Caves Mutant | -6/Factory Mutant | -6/Lower Caves Mutant | -6/Lower Caves Derelict-Mutant | -5/Factory Scavenger-Mutant | -5/Waste Scavenger-Mutant | -5/Factory Scavenger-Mutant | -4/Factory Mutant | -4/DSF Resources | -11 -10 -10 -9 -9 -9 -8 -8 -7 -7 -7 -6 -6 -6 -5 -5 -5 -4 -4 ----------- Run | Yrd Mat Min Mat Min Exi Min Mat Fac Low Low Fac Low Low Fac Was Fac Fac DSF Matter Collected 1589 | 250 . 30 72 122 . . 137 61 177 75 129 211 . 124 97 64 . 40 Remotely . | . . . . . . . . . . . . . . . . . . . Salvage Created 2260 | 34 50 77 99 244 . . . . 131 63 205 260 . 384 457 63 . 193 Parts 103 | 2 1 4 6 15 . . . . 10 6 6 9 . 18 10 5 . 11 Haulers Intercepted . | . . . . . . . . . . . . . . . . . . . Recyclers Shooed 1 | . . . . 1 . . . . . . . . . . . . . . Parts Field Recycled . | . . . . . . . . . . . . . . . . . . . Retrieved Matter . | . . . . . . . . . . . . . . . . . . . Parts Self-Destructed 27 | . . . . . . . . . 10 6 . 11 . . . . . . Prevented 2 | . . . . . . . . . . . . 2 . . . . . . Kills | -11 -10 -10 -9 -9 -9 -8 -8 -7 -7 -7 -6 -6 -6 -5 -5 -5 -4 -4 ------- Run | Yrd Mat Min Mat Min Exi Min Mat Fac Low Low Fac Low Low Fac Was Fac Fac DSF Combat Hostiles Destroyed 39 | 1 1 2 3 5 . . . . 5 4 4 5 . 1 4 1 . 3 Melee 3 | . . . . . . . . . . . . 1 . . . . . 2 Guns 19 | . 1 2 3 4 . . . . 3 1 1 2 . 1 . . . 1 Cannons 14 | . . . . 1 . . . . 2 3 2 1 . . 4 1 . . AOE 1 | 1 . . . . . . . . . . . . . . . . . . Classes Destroyed 14 | 1 . . 2 . . . . . 1 . 1 . . 3 3 1 . 2 Builder 1 | . . . . . . . . . . . 1 . . . . . . . Tunneler 1 | . . . . . . . . . . . . . . 1 . . . . Recycler 2 | . . . . . . . . . . . . . . 2 . . . . Watcher 1 | . . . . . . . . . . . . . . 1 . . . . Swarmer 10 | . . . 1 . . . . . 4 4 . 1 . . . . . . Grunt 14 | 1 1 2 1 3 . . . . . . 3 3 . . . . . . Brawler 1 | . . . . . . . . . . . . . . . 1 . . . Protector 1 | . . . . . . . . . . . . . . . 1 . . . Sentry 6 | . . . 1 2 . . . . . . . 1 . 1 1 . . . Specialist 2 | . . . . . . . . . . . . . . . . . . 2 Hunter 1 | . . . . . . . . . . . . . . . . 1 . . Programmer 2 | . . . . . . . . . 1 . 1 . . . . . . . Heavy 1 | . . . . . . . . . . . . . . . . . . 1 Compactor 1 | . . . . . . . . . . . . . . . 1 . . . Best Kill Streak 4 | 1 1 1 1 2 . . . . 4 4 3 3 . 2 2 1 . 2 Combat Bots Only 4 | 1 1 1 1 2 . . . . 4 4 3 3 . 1 2 1 . 2 Max Kills in Single Turn 1 | 1 1 1 1 1 . . . . 1 1 1 1 . 1 1 1 . 1 Gunslinging . | . . . . . . . . . . . . . . . . . . . Exploded 1 | 1 . . . . . . . . . . . . . . . . . . Melee 1 | . . . . . . . . . . . . 1 . . . . . 1 Uniques/NPCs Destroyed . | . . . . . . . . . . . . . . . . . . . Combat | -11 -10 -10 -9 -9 -9 -8 -8 -7 -7 -7 -6 -6 -6 -5 -5 -5 -4 -4 -------- Run | Yrd Mat Min Mat Min Exi Min Mat Fac Low Low Fac Low Low Fac Was Fac Fac DSF Hostile Shots Fired 540 | 2 9 15 9 43 . . 16 . 30 34 23 107 . 16 1 3 . 232 Missed 156 | 1 4 5 3 7 . . 8 . 13 14 8 24 . 5 1 . . 63 Damage Taken 6417 | 12 56 135 94 571 . . 124 . 262 299 279 1532 . 264 . 53 . 2736 Core 2221 | 12 10 53 16 171 . . 18 . 28 63 55 594 . 42 . . . 1159 Absorbed by Shields . | . . . . . . . . . . . . . . . . . . . Core Remaining (%) 74 | 95 . 70 . . . 53 96 . . 87 . . 23 . . 95 . . Volleys Fired 161 | 2 9 10 11 22 . . 20 1 13 6 13 15 . 13 9 4 . 13 Largest 3 | 2 2 2 2 2 . . 2 3 3 3 3 3 . 2 2 2 . 2 Hottest 160 | 90 90 90 40 60 . . 73 116 116 119 119 75 . 50 91 91 . 160 Shots Fired 303 | 4 18 19 22 29 . . 29 3 36 18 26 33 . 23 14 8 . 21 Gun 240 | 4 18 19 22 27 . . 27 2 23 6 10 26 . 23 9 4 . 20 Cannon 52 | . . . . . . . . 1 13 12 12 4 . . 5 4 . 1 Launcher . | . . . . . . . . . . . . . . . . . . . Special 11 | . . . . 2 . . 2 . . . 4 3 . . . . . . Kinetic 203 | . . . 22 14 . . 18 2 26 18 22 30 . 23 14 8 . 6 Thermal 46 | 2 9 9 . 2 . . 2 . . . 4 3 . . . . . 15 Explosive . | . . . . . . . . . . . . . . . . . . . Electromagnetic 54 | 2 9 10 . 13 . . 9 1 10 . . . . . . . . . Robot Hit Streak 16 | 2 6 4 3 13 . . 3 3 5 3 8 13 . 14 8 1 . 16 Robot Miss Streak 4 | 2 2 3 2 2 . . 3 1 4 3 1 3 . 3 2 3 . 3 Penetration Max . | . . . . . . . . . . . . . . . . . . . Secondary Targets . | . . . . . . . . . . . . . . . . . . . Shots Hit Robots 189 | 2 10 11 12 22 . . 14 2 13 8 16 28 . 18 10 3 . 20 Core Hits 92 | 1 2 7 5 9 . . 3 . 10 5 6 13 . 8 4 2 . 17 Critical Kills 6 | . . . . . . . . . . . . . . 1 4 1 . . Critical Parts Destroyed 4 | . . . . . . . . . . . 1 1 . . 1 1 . . Critical Strikes 14 | . 1 . . . . . 1 . 1 . 2 1 . 1 5 2 . . Burn 1 | . 1 . . . . . . . . . . . . . . . . . Destroy 8 | . . . . . . . . . . . . . . 1 5 2 . . Blast 2 | . . . . . . . . . 1 . 1 . . . . . . . Corrupt 1 | . . . . . . . 1 . . . . . . . . . . . Smash 2 | . . . . . . . . . . . 1 1 . . . . . . Melee Attacks 30 | . . . . . . . . . . . 16 4 . 8 . . . 2 Impact 20 | . . . . . . . . . . . 16 4 . . . . . . Slashing 10 | . . . . . . . . . . . . . . 8 . . . 2 Piercing . | . . . . . . . . . . . . . . . . . . . Sneak Attacks 3 | . . . . . . . . . . . 1 . . 2 . . . . Combat Hostiles . | . . . . . . . . . . . . . . . . . . . Follow-up Attacks . | . . . . . . . . . . . . . . . . . . . Damage Inflicted 3772 | 52 133 152 160 324 . . 179 29 207 216 539 606 . 393 187 47 . 548 Guns 2309 | 13 133 137 160 277 . . 179 29 112 84 53 358 . 231 88 . . 455 Cannons 650 | . . . . . . . . . 95 132 155 99 . . 99 47 . 23 Explosions 69 | 39 . . . 30 . . . . . . . . . . . . . . Melee 709 | . . . . . . . . . . . 331 146 . 162 . . . 70 Ramming 20 | . . 15 . 5 . . . . . . . . . . . . . . Kinetic 2068 | . . . 160 130 . . 124 15 186 216 208 457 . 231 187 47 . 107 Thermal 603 | 39 75 73 . 42 . . . . . . . 3 . . . . . 371 Explosive . | . . . . . . . . . . . . . . . . . . . Electromagnetic 372 | 13 58 64 . 147 . . 55 14 21 . . . . . . . . . Impact 477 | . . . . . . . . . . . 331 146 . . . . . . Slashing 232 | . . . . . . . . . . . . . . 162 . . . 70 Piercing . | . . . . . . . . . . . . . . . . . . . Highest Corruption 1 | . . 1 . 1 1 1 . . . . . 1 1 . . . . 1 Average Corruption 1 | . . 1 . 1 1 1 . . . . . 1 1 . . . . 1 Corruption Purged . | . . . . . . . . . . . . . . . . . . . Corruption Blocked . | . . . . . . . . . . . . . . . . . . . Effects 12 | . . . . . 4 1 . . . . . 4 3 . . . . . Message Errors 1 | . . . . . 1 . . . . . . . . . . . . . Matter Fused 2 | . . . . . 1 . . . . . . 1 . . . . . . Heat Flow Errors 3 | . . . . . . . . . . . . 2 1 . . . . . Energy Discharges 3 | . . . . . 1 1 . . . . . . 1 . . . . . Data Loss (minor) 2 | . . . . . 1 . . . . . . 1 . . . . . . Data Loss (major) 1 | . . . . . . . . . . . . . 1 . . . . . Overload Shots . | . . . . . . . . . . . . . . . . . . . Overflow Damage 171 | . . . . . . . . . . 5 128 38 . . . . . . Projectiles 5 | . . . . . . . . . . 5 . . . . . . . . Explosions . | . . . . . . . . . . . . . . . . . . . Melee 166 | . . . . . . . . . . . 128 38 . . . . . . Knockbacks 8 | . . . . . . . . . . . 6 2 . . . . . . Impact 3 | . . . . . . . . . . . 3 . . . . . . . Kinetic 5 | . . . . . . . . . . . 3 2 . . . . . . Secondary . | . . . . . . . . . . . . . . . . . . . Self-Inflicted Damage 46 | . . 7 . 39 . . . . . . . . . . . . . . Shots 1 | . . . . 1 . . . . . . . . . . . . . . Rammed 3 | . . 1 . 2 . . . . . . . . . . . . . . Targets Rammed 3 | . . 1 . 2 . . . . . . . . . . . . . . Kicked . | . . . . . . . . . . . . . . . . . . . Crushed . | . . . . . . . . . . . . . . . . . . . Highest Temperature 280 | 66 280 165 . . . . 94 42 168 152 32 197 168 21 88 158 . 28 Average Temperature 68 | 39 154 68 . . . . 50 24 87 92 15 47 95 8 37 65 . 12 Received Heat Transfer 1599 | 6 30 75 24 243 . . . . . . 153 423 . 45 . . . 600 Siege Activations . | . . . . . . . . . . . . . . . . . . . Robots Corrupted 3 | . . . . . . . . . . . 2 1 . . . . . . Combat Hostiles 2 | . . . . . . . . . . . 1 1 . . . . . . Parts Fried 3 | . 1 . . . . . . . . . 2 . . . . . . . Impact Corruptions 6 | . . . . . . . . . . . 5 1 . . . . . . Robots Melted . | . . . . . . . . . . . . . . . . . . . Combat Hostiles . | . . . . . . . . . . . . . . . . . . . Parts Melted 1 | . 1 . . . . . . . . . . . . . . . . . Heat Transferred 1480 | . 296 222 . 87 . . . . . . . 25 . . . . . 850 Parts Sabotaged . | . . . . . . . . . . . . . . . . . . . Parts Stolen . | . . . . . . . . . . . . . . . . . . . Parts Stripped . | . . . . . . . . . . . . . . . . . . . Power Chain Reactions 2 | 1 . . . 1 . . . . . . . . . . . . . . Alert | -11 -10 -10 -9 -9 -9 -8 -8 -7 -7 -7 -6 -6 -6 -5 -5 -5 -4 -4 ------- Run | Yrd Mat Min Mat Min Exi Min Mat Fac Low Low Fac Low Low Fac Was Fac Fac DSF Peak Influence 134 | 20 48 114 134 112 . . 15 3 . . 130 . . 46 78 64 30 40 Initial 81 | . 13 18 . 52 . . . 2 . . 81 . . . 16 54 30 21 Average 42 | 1 31 44 58 77 . . 9 2 . . 73 . . 11 45 57 30 14 Maximum Alert Level . | . . . . . . . . . . . . . . . . . . . Low Security (%) 100 | 100 100 100 100 100 . 100 100 100 . . 100 . . 100 100 100 100 100 Level 1 . | . . . . . . . . . . . . . . . . . . . Level 2 . | . . . . . . . . . . . . . . . . . . . Level 3 . | . . . . . . . . . . . . . . . . . . . Level 4 . | . . . . . . . . . . . . . . . . . . . Level 5 . | . . . . . . . . . . . . . . . . . . . High Security . | . . . . . . . . . . . . . . . . . . . Max Security . | . . . . . . . . . . . . . . . . . . . Squads Dispatched 12 | . 2 . 1 . . . 2 . . . 3 . . 1 . 1 . 2 Investigation 2 | . 1 . 1 . . . . . . . . . . . . . . . Extermination 2 | . . . . . . . . . . . 2 . . . . . . . Reinforcement 7 | . 1 . . . . . 1 . . . 1 . . 1 . 1 . 2 Assault 1 | . . . . . . . 1 . . . . . . . . . . . Garrison . | . . . . . . . . . . . . . . . . . . . Intercept . | . . . . . . . . . . . . . . . . . . . Searches Triggered . | . . . . . . . . . . . . . . . . . . . Construction Impeded . | . . . . . . . . . . . . . . . . . . . Haulers Reinforced . | . . . . . . . . . . . . . . . . . . . Active Scanning Responses . | . . . . . . . . . . . . . . . . . . . Cargo Convoy Interrupts . | . . . . . . . . . . . . . . . . . . . Stealth | -11 -10 -10 -9 -9 -9 -8 -8 -7 -7 -7 -6 -6 -6 -5 -5 -5 -4 -4 --------- Run | Yrd Mat Min Mat Min Exi Min Mat Fac Low Low Fac Low Low Fac Was Fac Fac DSF Distress Signals 3 | . . . 1 . . . 1 . . . . . . . 1 . . . Communications Jammed . | . . . . . . . . . . . . . . . . . . . Distress Signals . | . . . . . . . . . . . . . . . . . . . Times Spotted 58 | 1 2 4 8 5 . . 3 . 5 4 4 7 . 4 3 1 . 7 Peak Tracking Total 7 | 1 2 2 3 3 . . 2 . 4 4 3 7 . 1 1 1 . 3 Tactical Retreats 2 | . . . 1 . . . . . . . 1 . . . . . . . Traps | -11 -10 -10 -9 -9 -9 -8 -8 -7 -7 -7 -6 -6 -6 -5 -5 -5 -4 -4 ------- Run | Yrd Mat Min Mat Min Exi Min Mat Fac Low Low Fac Low Low Fac Was Fac Fac DSF Traps Triggered 3 | . . . . . . . . . . . . . . 1 . 2 . . Indirectly . | . . . . . . . . . . . . . . . . . . . Trap Hack Attempts . | . . . . . . . . . . . . . . . . . . . Triggered . | . . . . . . . . . . . . . . . . . . . Disarmed . | . . . . . . . . . . . . . . . . . . . Reprogrammed . | . . . . . . . . . . . . . . . . . . . Reused . | . . . . . . . . . . . . . . . . . . . Traps Extracted . | . . . . . . . . . . . . . . . . . . . Installed . | . . . . . . . . . . . . . . . . . . . Triggered . | . . . . . . . . . . . . . . . . . . . Machines | -11 -10 -10 -9 -9 -9 -8 -8 -7 -7 -7 -6 -6 -6 -5 -5 -5 -4 -4 ---------- Run | Yrd Mat Min Mat Min Exi Min Mat Fac Low Low Fac Low Low Fac Was Fac Fac DSF Machines Disabled 1 | . 1 . . . . . . . . . . . . . . . . . Max in Single Turn 1 | . 1 . . . . . . . . . . . . . . . . . Garrison Access 2 | . . . . . . . 1 . . . . . . . . 1 . . Machines Repaired . | . . . . . . . . . . . . . . . . . . . Machines Dismantled . | . . . . . . . . . . . . . . . . . . . Machines Sabotaged . | . . . . . . . . . . . . . . . . . . . Overloaded Fab Kills . | . . . . . . . . . . . . . . . . . . . Hacking | -11 -10 -10 -9 -9 -9 -8 -8 -7 -7 -7 -6 -6 -6 -5 -5 -5 -4 -4 --------- Run | Yrd Mat Min Mat Min Exi Min Mat Fac Low Low Fac Low Low Fac Was Fac Fac DSF Machines Accessed 21 | . 3 . 3 . 4 . 1 1 . . 4 2 . 1 . 1 1 . Terminals 12 | . 2 . 3 . . . 1 1 . . 2 1 . 1 . . 1 . Fabricators 1 | . . . . . . . . . . . 1 . . . . . . . Repair Stations . | . . . . . . . . . . . . . . . . . . . Recycling Units 1 | . 1 . . . . . . . . . . . . . . . . . Scanalyzers 1 | . . . . . . . . . . . 1 . . . . . . . Garrison Access 1 | . . . . . . . . . . . . . . . . 1 . . Total Hacks 84 | . 5 . 6 . 49 . 3 2 . . 7 7 . 2 . 2 1 . Successful 62 | . 1 . . . 49 . . . . . 3 7 . . . 1 1 . Failed 22 | . 4 . 6 . . . 3 2 . . 4 . . 2 . 1 . . Catastrophic 4 | . 1 . 1 . . . 1 . . . 1 . . . . . . . Database Lockouts . | . . . . . . . . . . . . . . . . . . . Manual 23 | . 4 . 6 . 1 . 3 . . . 7 . . 2 . . . . Terminals 28 | . 4 . 6 . . . 3 2 . . 4 6 . 2 . . 1 . Fabricators 1 | . . . . . . . . . . . 1 . . . . . . . Repair Stations . | . . . . . . . . . . . . . . . . . . . Recycling Units 1 | . 1 . . . . . . . . . . . . . . . . . Scanalyzers 2 | . . . . . . . . . . . 2 . . . . . . . Garrison Access 2 | . . . . . . . . . . . . . . . . 2 . . Terminal Hacks 57 | . . . . . 49 . . . . . . 7 . . . . 1 . Record 55 | . . . . . 49 . . . . . . 6 . . . . . . Open Door 1 | . . . . . . . . . . . . 1 . . . . . . Open DSF 1 | . . . . . . . . . . . . . . . . . 1 . Fabricator Hacks 1 | . . . . . . . . . . . 1 . . . . . . . Network Status 1 | . . . . . . . . . . . 1 . . . . . . . Repair Station Hacks . | . . . . . . . . . . . . . . . . . . . Recycling Unit Hacks 1 | . 1 . . . . . . . . . . . . . . . . . Report Inventory 1 | . 1 . . . . . . . . . . . . . . . . . Scanalyzer 2 | . . . . . . . . . . . 2 . . . . . . . Insert Component 1 | . . . . . . . . . . . 1 . . . . . . . Analyze 1 | . . . . . . . . . . . 1 . . . . . . . Garrison Access Hacks 1 | . . . . . . . . . . . . . . . . 1 . . Seal Access 1 | . . . . . . . . . . . . . . . . 1 . . Unauthorized Hacks . | . . . . . . . . . . . . . . . . . . . Terminals . | . . . . . . . . . . . . . . . . . . . Fabricators . | . . . . . . . . . . . . . . . . . . . Repair Stations . | . . . . . . . . . . . . . . . . . . . Recycling Units . | . . . . . . . . . . . . . . . . . . . Scanalyzers . | . . . . . . . . . . . . . . . . . . . Garrison Access . | . . . . . . . . . . . . . . . . . . . Data Cores Recovered 1 | . . . . . . . 1 . . . . . . . . . . . Used . | . . . . . . . . . . . . . . . . . . . Hacking Detections 13 | . 3 . 3 . . . 1 1 . . 2 1 . 1 . 1 . . Full Trace Events 3 | . 1 . 1 . . . . . . . . 1 . . . . . . Feedback Events 1 | . . . . . . . . . . . . 1 . . . . . . Corruption 1 | . . . . . . . . . . . . 1 . . . . . . Feedback Blocked . | . . . . . . . . . . . . . . . . . . . Robot Schematics Acquired . | . . . . . . . . . . . . . . . . . . . Robots Built . | . . . . . . . . . . . . . . . . . . . Authchips . | . . . . . . . . . . . . . . . . . . . Time . | . . . . . . . . . . . . . . . . . . . Total Robot Build Rating . | . . . . . . . . . . . . . . . . . . . Part Schematics Acquired 1 | . . . . . . . . . . . 1 . . . . . . . Parts Built . | . . . . . . . . . . . . . . . . . . . Authchips . | . . . . . . . . . . . . . . . . . . . Time . | . . . . . . . . . . . . . . . . . . . Total Part Build Rating . | . . . . . . . . . . . . . . . . . . . Parts Repaired . | . . . . . . . . . . . . . . . . . . . Time . | . . . . . . . . . . . . . . . . . . . Parts Recycled . | . . . . . . . . . . . . . . . . . . . Recycled Matter . | . . . . . . . . . . . . . . . . . . . Retrieved Matter . | . . . . . . . . . . . . . . . . . . . Retrieved Components . | . . . . . . . . . . . . . . . . . . . Parts Scanalyzed 1 | . . . . . . . . . . . 1 . . . . . . . Part Schematics Acquired 1 | . . . . . . . . . . . 1 . . . . . . . Parts Damaged . | . . . . . . . . . . . . . . . . . . . Bothacking | -11 -10 -10 -9 -9 -9 -8 -8 -7 -7 -7 -6 -6 -6 -5 -5 -5 -4 -4 ------------ Run | Yrd Mat Min Mat Min Exi Min Mat Fac Low Low Fac Low Low Fac Was Fac Fac DSF Used RIF Installer . | . . . . . . . . . . . . . . . . . . . Robots Hacked . | . . . . . . . . . . . . . . . . . . . Non-combat . | . . . . . . . . . . . . . . . . . . . Combat . | . . . . . . . . . . . . . . . . . . . Robot Hacks Applied . | . . . . . . . . . . . . . . . . . . . Relay Couplers Released 3 | . . . . . . . 3 . . . . . . . . . . . Machine Destruction 3 | . . . . . . . 3 . . . . . . . . . . . Fabnet Peak Effective % . | . . . . . . . . . . . . . . . . . . . Robots Rewired . | . . . . . . . . . . . . . . . . . . . Allies Hacked . | . . . . . . . . . . . . . . . . . . . Hacks Repelled . | . . . . . . . . . . . . . . . . . . . Allies | -11 -10 -10 -9 -9 -9 -8 -8 -7 -7 -7 -6 -6 -6 -5 -5 -5 -4 -4 -------- Run | Yrd Mat Min Mat Min Exi Min Mat Fac Low Low Fac Low Low Fac Was Fac Fac DSF Total Allies 3 | . . 2 . . . . . . . . . . . . 1 . . . Largest Group 2 | . . 2 1 . . . . . . . . . . . 1 1 . . Highest-Rated Group 52 | . . 52 31 . . . . . . . . . . . 31 31 . . Highest-Rated Ally 31 | . . 31 31 . . . . . . . . . . . 31 31 . . Total Orders . | . . . . . . . . . . . . . . . . . . . Ally Attacks 52 | . . 5 23 . . . . . . . . . . . 21 3 . . Total Damage 518 | . . 43 232 . . . . . . . . . . . 222 21 . . Kills 5 | . . 1 4 . . . . . . . . . . . . . . . Allies Corrupted . | . . . . . . . . . . . . . . . . . . . Allies Melted . | . . . . . . . . . . . . . . . . . . . Intel | -11 -10 -10 -9 -9 -9 -8 -8 -7 -7 -7 -6 -6 -6 -5 -5 -5 -4 -4 ------- Run | Yrd Mat Min Mat Min Exi Min Mat Fac Low Low Fac Low Low Fac Was Fac Fac DSF Robot Analysis Total . | . . . . . . . . . . . . . . . . . . . Derelict Logs Recovered 4 | . . 1 . 2 . . . . . . . 1 . . . . . . Drone Launches . | . . . . . . . . . . . . . . . . . . . Drone Recoveries . | . . . . . . . . . . . . . . . . . . . Exploration | -11 -10 -10 -9 -9 -9 -8 -8 -7 -7 -7 -6 -6 -6 -5 -5 -5 -4 -4 ------------- Run | Yrd Mat Min Mat Min Exi Min Mat Fac Low Low Fac Low Low Fac Was Fac Fac DSF Turns Passed 6538 | 55 103 489 237 472 624 258 185 170 280 73 840 1425 264 589 203 132 22 117 Spaces Moved 4280 | 59 90 378 199 323 593 100 230 222 541 39 391 513 73 257 132 96 18 26 Core 391 | 25 . . . 26 . . . . . . . 217 73 39 . . . 11 Treads . | . . . . . . . . . . . . . . . . . . . Legs 4 | . . . . . . . . . . . . . . . . . . 4 Wheels 2168 | 34 90 378 199 297 593 100 2 . . . . . . 218 132 96 18 11 Hover 1717 | . . . . . . . 228 222 541 39 391 296 . . . . . . Flight . | . . . . . . . . . . . . . . . . . . . Fastest Speed 42 | 50 80 80 80 80 105 105 44 42 42 45 106 50 350 95 101 105 105 50 Average Speed 122 | 67 80 80 80 116 105 105 44 45 42 139 174 265 350 191 103 105 105 149 Slowest Speed 950 | 80 80 80 80 250 105 105 105 48 45 170 230 350 350 700 105 105 105 950 Overloaded Moves . | . . . . . . . . . . . . . . . . . . . Propulsion Burnouts . | . . . . . . . . . . . . . . . . . . . Robots Hopped . | . . . . . . . . . . . . . . . . . . . Cave-ins Triggered . | . . . . . . . . . . . . . . . . . . . Exploration Rate (%) 32 | 6 25 75 22 65 92 25 23 7 64 6 11 67 13 6 68 3 1 32 Regions Visited 18 Branch Regions 8 Pre-discovered Areas 2 | . . . . 1 1 . . . . . . . . . . . . . Known Exits Taken 4 | . . . . . . 1 . . . . . 1 1 . . . 1 . Unknown Exits Taken 12 | 1 1 1 1 1 1 . 1 1 1 1 1 . . . . 1 . . Scrap Searched 5 | . . 1 . 1 . . . . 1 . . 2 . . . . . . Spaces Dug 17 | . . . . . . . . . 1 . 11 . . 5 . . . . Terrain Destroyed 26 | . . . . 3 . . . 1 4 2 11 . . 5 . . . . Melee 14 | . . . . . . . . . . . 9 . . 5 . . . . Projectile 9 | . . . . . . . . 1 4 2 2 . . . . . . . AOE 3 | . . . . 3 . . . . . . . . . . . . . . Terrain Rammed . | . . . . . . . . . . . . . . . . . . . Walls Destroyed . | . . . . . . . . . . . . . . . . . . . Machines Disabled . | . . . . . . . . . . . . . . . . . . . Actions | -11 -10 -10 -9 -9 -9 -8 -8 -7 -7 -7 -6 -6 -6 -5 -5 -5 -4 -4 --------- Run | Yrd Mat Min Mat Min Exi Min Mat Fac Low Low Fac Low Low Fac Was Fac Fac DSF Total 5215 | 70 102 544 258 388 594 253 278 290 561 44 486 540 84 321 185 119 21 77 Wait 587 | . . 148 20 29 . 154 15 50 . . 51 . 12 31 38 15 . 24 Move 4263 | 58 89 377 198 322 592 99 229 221 540 38 390 512 72 257 131 95 17 26 Hop . | . . . . . . . . . . . . . . . . . . . Pick Up 59 | 5 3 5 12 4 . . 3 5 1 . 3 1 . 5 4 2 . 6 Fast Attach 15 | . . . 3 . 1 . . 3 . . 3 5 . . . . . . Attach 56 | 5 1 2 3 7 . . 7 3 1 . 3 3 . 7 3 1 4 6 Detach 6 | . . . 2 2 1 . . 1 . . . . . . . . . . Swap 10 | . . 1 . . . . 1 1 2 . 4 . . . . 1 . . Drop 20 | . . . 9 . . . 2 5 . . 3 . . . . 1 . . Fire 161 | 2 9 10 11 22 . . 20 1 13 6 13 15 . 13 9 4 . 13 Melee 30 | . . . . . . . . . . . 16 4 . 8 . . . 2 Ram 3 | . . 1 . 2 . . . . . . . . . . . . . . Kick . | . . . . . . . . . . . . . . . . . . . Crush . | . . . . . . . . . . . . . . . . . . . Escape Stasis . | . . . . . . . . . . . . . . . . . . . Rewire 4 | . . . . . . . . . 4 . . . . . . . . . Trap . | . . . . . . . . . . . . . . . . . . . Miscellaneous 1 | . . . . . . . 1 . . . . . . . . . . . Route ------- -11/Scrapyard -10/Materials -10/Mines -9/Materials (discovered 2 exits: Mat / [*Min]) -9/Mines -9/Exiles (discovered 2 exits: [*Min x2]) -8/Mines -8/Materials -7/Factory -7/Lower Caves -7/Lower Caves -6/Factory -6/Lower Caves -6/Lower Caves -5/Factory -5/Waste -5/Factory -4/Factory (discovered 2 exits: Res / DSF) -4/DSF (discovered 1 exit: *Res) History --------- Turn | Location | Event 2 | -11/Scrapyard | Met Revision 17 45 | -11/Scrapyard | Discovered new exit (range 8) 56 | -11/Scrapyard | Entered Materials 140 | -10/Materials | Discovered new exit (range 12) 159 | -10/Materials | Entered Mines 309 | -10/Mines | Build established: Mutant 593 | -10/Mines | Learned location of 1 exit from Materials 595 | -10/Mines | Discovered new exit (range 5) 648 | -10/Mines | Entered Materials 648 | -9/Materials | Accompanied by 1 ally 648 | -9/Materials | Evolved 2 slots: Propulsion x1, Utility x1 649 | -9/Materials | Identified exit to Materials 653 | -9/Materials | Led the pair of lost Derelicts to an unsafe place 812 | -9/Materials | Discovered new exit (range 16) 885 | -9/Materials | Entered Mines 952 | -9/Mines | Lost 6 parts (1p2n3w) 1120 | -9/Mines | Learned location of Storage (-9) 1217 | -9/Mines | Learned Materials emergency access door positions 1353 | -9/Mines | Deemed a non-threat by the Exiles lab entrance 1353 | -9/Mines | Discovered new exit (range 5) 1357 | -9/Mines | Entered Exiles 1374 | -9/Exiles | Discovered new exit (range 14) 1396 | -9/Exiles | Met 8R-AWN 1415 | -9/Exiles | Met EX-HEX 1454 | -9/Exiles | Met EX-DEC 1479 | -9/Exiles | Learned location of Zion (-7) 1532 | -9/Exiles | Visited The Gauntlet 1738 | -9/Exiles | Discovered new exit (range 10) 1795 | -9/Exiles | Met EX-BIN 1814 | -9/Exiles | Aligned with FarCom system 1815 | -9/Exiles | Given EX-Vault access code 1856 | -9/Exiles | Opened EX-Vault 1867 | -9/Exiles | Found Prototype Processor 1867 | -9/Exiles | Identified Modified TNC 1908 | -9/Exiles | Warned to stay clear of 0b10 Research branches 1981 | -9/Exiles | Left Exiles lab with Modified TNC 1981 | -9/Exiles | Entered Mines 2208 | -8/Mines | Discovered exit to Materials (range 13) 2239 | -8/Mines | Entered Materials 2239 | -8/Materials | Evolved 2 slots: Propulsion x2 2346 | -8/Materials | Met 7R-MNS 2362 | -8/Materials | Discovered new exit (range 14) 2424 | -8/Materials | Entered Factory 2424 | -7/Factory | Evolved 2 slots: Power x1, Weapon x1 2425 | -7/Factory | Caught up to 7R-MNS 2588 | -7/Factory | Discovered new exit (range 6) 2594 | -7/Factory | Entered Lower Caves 2595 | -7/Lower Caves | Encountered a Warlord checkpoint 2872 | -7/Lower Caves | Discovered new exit (range 6) 2874 | -7/Lower Caves | Entered another Lower Caves area 2899 | -7/Lower Caves | Build established: Gunner 2925 | -7/Lower Caves | Discovered new exit (range 10) 2926 | -7/Lower Caves | Lost 4 parts (1p3n) 2947 | -7/Lower Caves | Entered Factory 2947 | -6/Factory | Evolved 2 slots: Propulsion x1, Utility x1 3535 | -6/Factory | Build established: Mutant 3757 | -6/Factory | Discovered new exit (range 13) 3787 | -6/Factory | Entered Lower Caves 3794 | -6/Lower Caves | Learned Factory security intel 4469 | -6/Lower Caves | Attracted the attention of an 0b10 base 4501 | -6/Lower Caves | Core integrity fell below 50% 4565 | -6/Lower Caves | Identified exit to Lower Caves 4565 | -6/Lower Caves | Learned location of 1 exit from Lower Caves 4565 | -6/Lower Caves | Learned Armory trap positions 4566 | -6/Lower Caves | Lost 11 parts (1p3n1u6w) 5161 | -6/Lower Caves | Encountered a Warlord checkpoint 5212 | -6/Lower Caves | Entered another Lower Caves area 5213 | -6/Lower Caves | Identified exit to Factory 5476 | -6/Lower Caves | Entered Factory 5476 | -5/Factory | Evolved 2 slots: Utility x2 5960 | -5/Factory | Lost 3 parts (1n1u1w) 6065 | -5/Factory | Sucked down chute 6065 | -5/Factory | Entered Waste 6065 | -5/Waste | The area was eerily silent 6066 | -5/Waste | Met a frightened Derelict 6195 | -5/Waste | A Compactor rumbled back to life 6198 | -5/Waste | Spotted C-40 Crusher 6200 | -5/Waste | Destroyed C-40 Crusher 6205 | -5/Waste | Discovered new exit (range 12) 6225 | -5/Waste | Found Fusion Bomb Launcher 6230 | -5/Waste | Found Prototype Device 6231 | -5/Waste | Identified Exp. ECM Suite 6252 | -5/Waste | Build established: Scavenger-Mutant 6268 | -5/Waste | Entered Factory 6268 | -5/Factory | Accompanied by 1 ally 6358 | -5/Factory | Discovered new exit (range 15) 6400 | -5/Factory | Entered another Factory area 6400 | -4/Factory | Evolved 2 slots: Utility x1, Weapon x1 6401 | -4/Factory | Identified exit to Research 6422 | -4/Factory | Identified exit to DSF 6422 | -4/Factory | Entered DSF 6441 | -4/DSF | Additional patrols routed to DSF 6478 | -4/DSF | Discovered exit to Research (range 16) 6502 | -4/DSF | Core integrity fell below 50% 6533 | -4/DSF | Core integrity fell below 20% 6539 | -4/DSF | Destroyed by H-77 Assassin with High-powered Shotgun Last Messages --------------- Slug penetrates Wall. Gatling Laser destroyed. Penetrated by Slug. Adv. VSS Leg destroyed. Slug penetrates Wall. Penetrated by Slug. Gatling Laser destroyed. Slug penetrates Wall. Penetrated by Slug. Slug penetrates Wall. Slug penetrates H-77 Assassin. Slug penetrates Wall. Adv. VSS Leg destroyed. Penetrated by Slug. Slug penetrates P-70 Sage. Penetrated by Slug. Hacking Suite destroyed. Penetrated by Slug. Slug penetrates Wall. [Achievement: 5k Club] Map ----- +----------------------------------------------------+ | | | | | ???????????????????????????????? | | ???????????????????????????????? | | ???????????????????????????????? | | ???????????????????????????????? | | ??????????"#???????????????????? | | ??????????"#???????????????????? | | ??????####"##??????????????????? | | ??????#"""""#?###???#??????????? | | ??????#"""""##&&# # ??????? | | ???#"##"" ??????? | | ???#""""" ??????? | | ????###"" ## # ##?????????? | | ??????### ##???#??????????????? | | ???????## ###?????????????????? | | ???????# #?????????????????? | | ???????# #?????????????????? | | ???????## ###?????????????????? | | ???????# &&#?????????????????? | | ???????# &&#?????????????????? | | ???????# &&#?????????????????? | | ??????### ###?##??????????????? | | ??????# %%#?? #??????????????? | | ??????# !%!#; #!!!## ?????? | | ??????#@ ! ????? | | ??????# * %! ????? | | ??????#% % ????? | | ??????# %##!!!#]]]## ?????? | | ??????# #?!!!#?]]#??????????? | | ??????##; #??###???#??????????? | | ????????& &???????????????????? | | ????????&hph&??????????????????? | | ???????#& &&#?????????????????? | | ???????## ###?????????????????? | | ????????& ???????????????????? | | ????????&% ???????????????????? | | ????????# %##??????????????????? | | ????????# #???????????????????? | | ????????" ???????????????????? | | ????????? ????????????????????? | | ?????????< ????????????????????? | | ???????????????????????????????? | | ???????????????????????????????? | | ???????????????????????????????? | | ???????????????????????????????? | | ???????????????????????????????? | | ???????????????????????????????? | | ???????????????????????????????? | | ???????????????????????????????? | +----------------------------------------------------+ Best States ------------- Heat Dissipation 57 Energy Generation 33 Energy Capacity 530 Matter Stores 300 Matter Capacity 300 Sight Range 16 Terrain Scan Density 10 ECM Strength 3 Additional Mass Support 6 Armor Coverage 600 Evasion (%) 56 Melee Accuracy 5 Core Analysis 6 Offensive Hacking 10 Item Schematics ----------------- Melee Analysis Suite | -6/Factory | Scanalyzed Robot Schematics ------------------ None Fabricated ------------ Nothing Alien Tech Used ----------------- None Achievements -------------- 5k Club Leap Before You Look Librarian One Hack Too Far Part-time Excavator Serviceable Loadout Tourist Challenges ------------ None Game ------ Seed DisruptorMetafieldStripper Manual? 0 Play Time 01:09:04 Cumulative 1.4 hours Start 2024.09.17 @ 09:21:52 End 2024.09.17 @ 10:28:19 Sessions 1 Manual Loads 0 Difficulty Rogue Special Mode None Game No. 3 Rogue 3 Adventurer 0 Explorer 0 Win Type - Total 0 Types 0/0/0/0/0/0/0/0/0 Lore% 5 Gallery% 7 Achievement% 7 Wizard Run 0 Options --------- Layout 1 ASCII 0 Keyboard 0 Movement Arrows Keybinds 0 Fullscreen 1 Font 24/Smallcaps Map View 50x35 Zoom Use 0% Tactical HUD 0 Map Filters NONE Filters NONE Steam 1 RUN: d65a5f78-36d3-4dd7-9721-b0d1c9df264c